[Event "Early-Titled-Tuesday-Blitz-January-16-2024"]
[Site "Chess.com"]
[Date "2024.01.16"]
[Round "6"]
[White "Sychev_Klementy"]
[Black "karinachess1"]
[Result "0-1"]
[WhiteElo "2766"]
[BlackElo "2619"]
[TimeControl "180+1"]
[EndTime "9:11:28 PST"]
[Termination "karinachess1 won on time"]

1. e4 {[%clk 0:03:00.9]} 1... e5 {[%clk 0:02:59.7]} 2. Nc3 {[%clk 0:03:00.4]}
2... Nf6 {[%clk 0:02:58.8]} 3. f4 {[%clk 0:03:00.4]} 3... d5 {[%clk 0:02:58.6]}
4. fxe5 {[%clk 0:03:00.8]} 4... Nxe4 {[%clk 0:02:58.9]} 5. Qf3 {[%clk
0:03:01.4]} 5... Nxc3 {[%clk 0:02:58.9]} 6. dxc3 {[%clk 0:03:01.2]} 6... Be7
{[%clk 0:02:57.9]} 7. Bf4 {[%clk 0:03:00.7]} 7... O-O {[%clk 0:02:54.3]} 8.
O-O-O {[%clk 0:03:00]} 8... Be6 {[%clk 0:02:51.3]} 9. Bd3 {[%clk 0:02:47]} 9...
Nd7 {[%clk 0:02:33.8]} 10. Qh5 {[%clk 0:02:28.5]} 10... g6 {[%clk 0:02:29.8]}
11. Qh6 {[%clk 0:02:28]} 11... Re8 {[%clk 0:02:10.2]} 12. h4 {[%clk 0:02:17.1]}
12... Bf8 {[%clk 0:02:10.3]} 13. Qg5 {[%clk 0:02:17.3]} 13... Qxg5 {[%clk
0:02:03]} 14. hxg5 {[%clk 0:02:18.2]} 14... Bg7 {[%clk 0:02:01.2]} 15. Re1
{[%clk 0:02:09.8]} 15... Bg4 {[%clk 0:01:41.3]} 16. Rh4 {[%clk 0:02:07.2]} 16...
Bxe5 {[%clk 0:01:37.6]} 17. Bd2 {[%clk 0:01:43.3]} 17... Be6 {[%clk 0:01:23.8]}
18. Ne2 {[%clk 0:01:39.4]} 18... Nf8 {[%clk 0:01:10.3]} 19. Rf1 {[%clk
0:01:35.9]} 19... Re7 {[%clk 0:00:57.7]} 20. Be3 {[%clk 0:01:20.6]} 20... b6
{[%clk 0:00:42]} 21. b4 {[%clk 0:01:16.7]} 21... a5 {[%clk 0:00:39.5]} 22. b5
{[%clk 0:01:16.6]} 22... Bd7 {[%clk 0:00:35.4]} 23. Kd2 {[%clk 0:01:14.8]} 23...
Rae8 {[%clk 0:00:33.9]} 24. Rf3 {[%clk 0:01:10.9]} 24... Bg7 {[%clk 0:00:25.9]}
25. a4 {[%clk 0:01:02.1]} 25... Ne6 {[%clk 0:00:22.1]} 26. c4 {[%clk 0:00:46.9]}
26... dxc4 {[%clk 0:00:17.8]} 27. Bxc4 {[%clk 0:00:47]} 27... Bc8 {[%clk
0:00:15.2]} 28. Bd3 {[%clk 0:00:34.4]} 28... Bb7 {[%clk 0:00:14.6]} 29. Rfh3
{[%clk 0:00:33.3]} 29... Nf8 {[%clk 0:00:14.9]} 30. g4 {[%clk 0:00:26.1]} 30...
Bg2 {[%clk 0:00:14.5]} 31. Rg3 {[%clk 0:00:25.3]} 31... Bd5 {[%clk 0:00:14]} 32.
Rhh3 {[%clk 0:00:21.4]} 32... c6 {[%clk 0:00:13.3]} 33. c4 {[%clk 0:00:16.3]}
33... Be4 {[%clk 0:00:13.8]} 34. Bxe4 {[%clk 0:00:11.5]} 34... Rxe4 {[%clk
0:00:14.7]} 35. Kd3 {[%clk 0:00:06.4]} 35... cxb5 {[%clk 0:00:15.1]} 36. axb5
{[%clk 0:00:06]} 36... R4e6 {[%clk 0:00:14.9]} 37. Nd4 {[%clk 0:00:03.6]} 37...
Rd6 {[%clk 0:00:14.7]} 38. Kc2 {[%clk 0:00:01.6]} 38... Rxe3 {[%clk 0:00:14.3]}
39. Rxe3 {[%clk 0:00:01.7]} 39... Bxd4 {[%clk 0:00:13.8]} 40. Re8 {[%clk
0:00:01.8]} 40... Kg7 {[%clk 0:00:14.3]} 41. Rd3 {[%clk 0:00:02.1]} 41... Ne6
{[%clk 0:00:14.4]} 42. Rb8 {[%clk 0:00:02.1]} 42... Nc5 {[%clk 0:00:13.9]} 43.
Rd2 {[%clk 0:00:01.8]} 43... Ne6 {[%clk 0:00:13.7]} 44. Rd3 {[%clk 0:00:02.1]}
44... Rd7 {[%clk 0:00:13.3]} 45. Rd1 {[%clk 0:00:02.4]} 45... Rd6 {[%clk
0:00:12.8]} 46. Kb1 {[%clk 0:00:02.8]} 46... Nxg5 {[%clk 0:00:12.4]} 47. c5
{[%clk 0:00:03.4]} 47... Bxc5 {[%clk 0:00:12.4]} 48. Rxd6 {[%clk 0:00:03.5]}
48... Bxd6 {[%clk 0:00:13.3]} 49. Rxb6 {[%clk 0:00:04.1]} 49... Ne4 {[%clk
0:00:13.7]} 50. Rc6 {[%clk 0:00:04.2]} 50... h5 {[%clk 0:00:12.7]} 51. gxh5
{[%clk 0:00:03]} 51... gxh5 {[%clk 0:00:13.6]} 52. b6 {[%clk 0:00:03.7]} 52...
Bg3 {[%clk 0:00:13.6]} 53. b7 {[%clk 0:00:03.6]} 53... h4 {[%clk 0:00:13.6]} 54.
Ka2 {[%clk 0:00:02.8]} 54... h3 {[%clk 0:00:13.5]} 55. Rc1 {[%clk 0:00:01.9]}
55... h2 {[%clk 0:00:13.9]} 56. Re1 {[%clk 0:00:01.7]} 56... Nf2 {[%clk
0:00:14.1]} 57. Re3 {[%clk 0:00:01.1]} 57... Bb8 {[%clk 0:00:14.4]} 0-1

[Event "Early-Titled-Tuesday-Blitz-January-16-2024"]
[Site "Chess.com"]
[Date "2024.01.16"]
[Round "6"]
[White "MikaelyanArman"]
[Black "Maestro-Fermin"]
[Result "1-0"]
[WhiteElo "2840"]
[BlackElo "2615"]
[TimeControl "180+1"]
[EndTime "9:11:29 PST"]
[Termination "MikaelyanArman won by resignation"]

1. e4 {[%clk 0:03:00.9]} 1... c6 {[%clk 0:02:58.4]} 2. d4 {[%clk 0:03:00.4]}
2... d5 {[%clk 0:02:58.6]} 3. exd5 {[%clk 0:03:01.2]} 3... cxd5 {[%clk
0:02:58.4]} 4. Bd3 {[%clk 0:03:01.2]} 4... Nc6 {[%clk 0:02:57.7]} 5. c3 {[%clk
0:03:01.9]} 5... Qc7 {[%clk 0:02:56.4]} 6. h3 {[%clk 0:03:01.7]} 6... e6 {[%clk
0:02:55.1]} 7. Nf3 {[%clk 0:03:02.1]} 7... Bd6 {[%clk 0:02:54.7]} 8. O-O {[%clk
0:03:01.9]} 8... Nge7 {[%clk 0:02:54.1]} 9. Re1 {[%clk 0:03:01.3]} 9... h6
{[%clk 0:02:53.6]} 10. Nbd2 {[%clk 0:03:01.6]} 10... O-O {[%clk 0:02:52.5]} 11.
Nf1 {[%clk 0:03:01.8]} 11... f6 {[%clk 0:02:42.5]} 12. b3 {[%clk 0:02:58.4]}
12... e5 {[%clk 0:02:38.8]} 13. c4 {[%clk 0:02:55.5]} 13... e4 {[%clk
0:02:19.8]} 14. c5 {[%clk 0:02:53.7]} 14... exd3 {[%clk 0:02:15.7]} 15. cxd6
{[%clk 0:02:53.5]} 15... Qxd6 {[%clk 0:02:16.6]} 16. Qxd3 {[%clk 0:02:53]} 16...
Bf5 {[%clk 0:02:14.9]} 17. Qd2 {[%clk 0:02:51.4]} 17... Rac8 {[%clk 0:02:10.1]}
18. Ng3 {[%clk 0:02:50.7]} 18... Bh7 {[%clk 0:02:06.9]} 19. a3 {[%clk
0:02:49.3]} 19... Rfe8 {[%clk 0:01:53.9]} 20. Bb2 {[%clk 0:02:39.3]} 20... b6
{[%clk 0:01:44.2]} 21. b4 {[%clk 0:02:38.7]} 21... Nf5 {[%clk 0:01:24.1]} 22.
Nxf5 {[%clk 0:02:36.2]} 22... Bxf5 {[%clk 0:01:25]} 23. Nh4 {[%clk 0:02:32.1]}
23... Be4 {[%clk 0:01:24.4]} 24. Re3 {[%clk 0:02:30.1]} 24... g5 {[%clk
0:01:17.3]} 25. Nf3 {[%clk 0:02:28.9]} 25... Re7 {[%clk 0:01:15.5]} 26. Rae1
{[%clk 0:02:28.2]} 26... Rce8 {[%clk 0:01:15.7]} 27. Qd1 {[%clk 0:02:28.3]}
27... Re6 {[%clk 0:01:05.2]} 28. Nd2 {[%clk 0:02:28.3]} 28... Bg6 {[%clk
0:01:04.7]} 29. Qf3 {[%clk 0:02:27]} 29... Kg7 {[%clk 0:01:03.4]} 30. b5 {[%clk
0:02:23.9]} 30... Rxe3 {[%clk 0:01:02.7]} 31. Rxe3 {[%clk 0:02:23.3]} 31... Rxe3
{[%clk 0:01:02.4]} 32. fxe3 {[%clk 0:02:24.1]} 32... Ne7 {[%clk 0:01:02.4]} 33.
Kf2 {[%clk 0:02:10.9]} 33... Nf5 {[%clk 0:01:01.4]} 34. g3 {[%clk 0:01:46.6]}
34... Qe6 {[%clk 0:01:01.3]} 35. e4 {[%clk 0:01:35.7]} 35... dxe4 {[%clk
0:00:58.7]} 36. Qxe4 {[%clk 0:01:36.3]} 36... Qxe4 {[%clk 0:00:55.2]} 37. Nxe4
{[%clk 0:01:37.2]} 37... Nxd4 {[%clk 0:00:48.3]} 38. Nd6 {[%clk 0:01:35.1]}
38... Nb3 {[%clk 0:00:32.1]} 39. Nc8 {[%clk 0:01:34.4]} 39... Bd3 {[%clk
0:00:31]} 40. Nxa7 {[%clk 0:01:33.7]} 40... Nc5 {[%clk 0:00:27.1]} 41. Bd4
{[%clk 0:01:32.5]} 41... Nd7 {[%clk 0:00:25]} 42. Ke3 {[%clk 0:01:29.7]} 42...
Bf1 {[%clk 0:00:24.3]} 43. h4 {[%clk 0:01:23.3]} 43... gxh4 {[%clk 0:00:25.2]}
44. gxh4 {[%clk 0:01:24.1]} 44... Kf7 {[%clk 0:00:25.5]} 45. a4 {[%clk
0:01:24.2]} 45... Ke6 {[%clk 0:00:25.5]} 46. Nc8 {[%clk 0:01:24]} 46... Bc4
{[%clk 0:00:18.2]} 47. Bxb6 {[%clk 0:00:59.3]} 47... Bb3 {[%clk 0:00:17.7]} 48.
a5 {[%clk 0:00:51.6]} 48... Bc4 {[%clk 0:00:17.5]} 49. a6 {[%clk 0:00:52.2]}
49... Bxb5 {[%clk 0:00:16.7]} 50. a7 {[%clk 0:00:52.8]} 50... Bc6 {[%clk
0:00:16.7]} 51. Bd4 {[%clk 0:00:53.4]} 51... Ne5 {[%clk 0:00:15.6]} 52. Nb6
{[%clk 0:00:52.1]} 52... h5 {[%clk 0:00:14.2]} 53. Bxe5 {[%clk 0:00:18.1]} 53...
Kxe5 {[%clk 0:00:12.7]} 54. a8=Q {[%clk 0:00:14.5]} 54... Bxa8 {[%clk
0:00:12.1]} 55. Nxa8 {[%clk 0:00:15.4]} 55... Kf5 {[%clk 0:00:07.1]} 56. Kf3
{[%clk 0:00:15.2]} 56... Ke5 {[%clk 0:00:07]} 57. Nb6 {[%clk 0:00:15.5]} 57...
f5 {[%clk 0:00:06.8]} 58. Nc4+ {[%clk 0:00:15.5]} 58... Kd4 {[%clk 0:00:06.9]}
59. Nd6 {[%clk 0:00:14.3]} 59... Ke5 {[%clk 0:00:06.9]} 60. Nf7+ {[%clk
0:00:14.6]} 60... Kf6 {[%clk 0:00:07.2]} 61. Ng5 {[%clk 0:00:14.9]} 61... Ke5
{[%clk 0:00:07]} 62. Nh3 {[%clk 0:00:15.2]} 62... Kf6 {[%clk 0:00:06.5]} 63. Nf4
{[%clk 0:00:15.6]} 1-0

[Event "Early-Titled-Tuesday-Blitz-January-16-2024"]
[Site "Chess.com"]
[Date "2024.01.16"]
[Round "6"]
[White "Kaissa10"]
[Black "JoliyRoger"]
[Result "1-0"]
[WhiteElo "2274"]
[BlackElo "2456"]
[TimeControl "180+1"]
[EndTime "9:11:29 PST"]
[Termination "Kaissa10 won by checkmate"]

1. e4 {[%clk 0:02:58]} 1... c6 {[%clk 0:03:00.4]} 2. d4 {[%clk 0:02:50.7]} 2...
d5 {[%clk 0:03:01.3]} 3. Nc3 {[%clk 0:02:51.2]} 3... dxe4 {[%clk 0:03:00.3]} 4.
Nxe4 {[%clk 0:02:52.1]} 4... Nf6 {[%clk 0:03:00.7]} 5. Nxf6+ {[%clk 0:02:52.8]}
5... exf6 {[%clk 0:03:01.6]} 6. c3 {[%clk 0:02:52.7]} 6... Bd6 {[%clk
0:03:01.9]} 7. Bd3 {[%clk 0:02:52.9]} 7... Na6 {[%clk 0:03:02.4]} 8. Ne2 {[%clk
0:02:50.4]} 8... Bg4 {[%clk 0:02:57.2]} 9. Qc2 {[%clk 0:02:48.8]} 9... Nc7
{[%clk 0:02:53.4]} 10. h3 {[%clk 0:02:48.5]} 10... Bh5 {[%clk 0:02:51.2]} 11. c4
{[%clk 0:02:44.3]} 11... Bg6 {[%clk 0:02:51]} 12. O-O {[%clk 0:02:42.7]} 12...
O-O {[%clk 0:02:50.3]} 13. Be3 {[%clk 0:02:39.7]} 13... Re8 {[%clk 0:02:36.4]}
14. Rad1 {[%clk 0:02:34.2]} 14... Rc8 {[%clk 0:02:25.9]} 15. Nf4 {[%clk
0:02:24.5]} 15... Bxf4 {[%clk 0:02:20.3]} 16. Bxf4 {[%clk 0:02:21.2]} 16... Ne6
{[%clk 0:02:20.8]} 17. Be3 {[%clk 0:02:15.1]} 17... Bh5 {[%clk 0:02:17.7]} 18.
Rde1 {[%clk 0:01:57.8]} 18... Bg6 {[%clk 0:02:16.1]} 19. Rd1 {[%clk 0:01:56.3]}
19... Qd6 {[%clk 0:02:13.1]} 20. Bxg6 {[%clk 0:01:41.5]} 20... hxg6 {[%clk
0:02:12.3]} 21. Qb3 {[%clk 0:01:29.4]} 21... b6 {[%clk 0:01:59]} 22. d5 {[%clk
0:01:28.4]} 22... Nc5 {[%clk 0:01:54.4]} 23. dxc6 {[%clk 0:01:22.8]} 23... Qxc6
{[%clk 0:01:49.5]} 24. Qa3 {[%clk 0:01:21.4]} 24... Qb7 {[%clk 0:01:38]} 25. b4
{[%clk 0:01:12.3]} 25... Ne4 {[%clk 0:01:37.6]} 26. c5 {[%clk 0:01:12.8]} 26...
b5 {[%clk 0:01:30.6]} 27. Rfe1 {[%clk 0:01:03.8]} 27... f5 {[%clk 0:01:31]} 28.
f3 {[%clk 0:00:23]} 28... Nf6 {[%clk 0:01:27.4]} 29. Bf2 {[%clk 0:00:22.7]}
29... a6 {[%clk 0:01:25.8]} 30. Qb2 {[%clk 0:00:18.4]} 30... Nd5 {[%clk
0:01:21.9]} 31. Qd4 {[%clk 0:00:13.4]} 31... Red8 {[%clk 0:01:20.6]} 32. Qh4
{[%clk 0:00:09.9]} 32... f6 {[%clk 0:01:17.4]} 33. a3 {[%clk 0:00:10.2]} 33...
Qf7 {[%clk 0:01:10.9]} 34. Rd4 {[%clk 0:00:08.9]} 34... f4 {[%clk 0:01:09.8]}
35. Red1 {[%clk 0:00:08.8]} 35... g5 {[%clk 0:01:10.4]} 36. Qg4 {[%clk
0:00:07.4]} 36... g6 {[%clk 0:00:51.9]} 37. Rxd5 {[%clk 0:00:07]} 37... Rxd5
{[%clk 0:00:51.1]} 38. Qxc8+ {[%clk 0:00:06.5]} 38... Kg7 {[%clk 0:00:50.2]} 39.
Rxd5 {[%clk 0:00:05.7]} 39... Qxd5 {[%clk 0:00:51.1]} 40. Qc7+ {[%clk
0:00:06.1]} 40... Kh6 {[%clk 0:00:50.5]} 41. Qd6 {[%clk 0:00:06.3]} 41... Qa2
{[%clk 0:00:41.4]} 42. Qxf6 {[%clk 0:00:06.2]} 42... Kh7 {[%clk 0:00:41.5]} 43.
Qe7+ {[%clk 0:00:05.6]} 43... Kh6 {[%clk 0:00:41.4]} 44. Qf8+ {[%clk 0:00:05.4]}
44... Kh7 {[%clk 0:00:41.8]} 45. Bd4 {[%clk 0:00:05.6]} 45... Qg8 {[%clk
0:00:34.1]} 46. Qe7+ {[%clk 0:00:05.9]} 46... Kh6 {[%clk 0:00:34.1]} 47. Qg7+
{[%clk 0:00:06.8]} 47... Qxg7 {[%clk 0:00:34.1]} 48. Bxg7+ {[%clk 0:00:03.9]}
48... Kxg7 {[%clk 0:00:34.8]} 49. c6 {[%clk 0:00:04.8]} 49... Kf7 {[%clk
0:00:35.5]} 50. c7 {[%clk 0:00:05.7]} 50... a5 {[%clk 0:00:36.4]} 51. c8=Q
{[%clk 0:00:06.6]} 51... axb4 {[%clk 0:00:37.3]} 52. axb4 {[%clk 0:00:06.9]}
52... Kf6 {[%clk 0:00:37]} 53. Qc5 {[%clk 0:00:07.8]} 53... Ke6 {[%clk
0:00:37.4]} 54. Qxb5 {[%clk 0:00:08.4]} 54... g4 {[%clk 0:00:38.3]} 55. Qg5
{[%clk 0:00:08.4]} 55... gxf3 {[%clk 0:00:38.2]} 56. gxf3 {[%clk 0:00:08.3]}
56... Kf7 {[%clk 0:00:38.4]} 57. b5 {[%clk 0:00:09.2]} 57... Ke6 {[%clk
0:00:38.3]} 58. b6 {[%clk 0:00:10.1]} 58... Kd6 {[%clk 0:00:38.6]} 59. Qb5
{[%clk 0:00:09.6]} 59... Ke6 {[%clk 0:00:37.6]} 60. b7 {[%clk 0:00:10.2]} 60...
g5 {[%clk 0:00:38.5]} 61. b8=Q {[%clk 0:00:11.1]} 61... Kf6 {[%clk 0:00:39.4]}
62. Q8e5+ {[%clk 0:00:11.6]} 62... Kg6 {[%clk 0:00:40.3]} 63. Qxg5+ {[%clk
0:00:11.7]} 63... Kf7 {[%clk 0:00:40.1]} 64. Qgf5+ {[%clk 0:00:11.7]} 64... Kg7
{[%clk 0:00:39.2]} 65. Qbd7+ {[%clk 0:00:12.6]} 65... Kg8 {[%clk 0:00:39]} 66.
Qfh7+ {[%clk 0:00:12.8]} 66... Kf8 {[%clk 0:00:39]} 67. Qdf7# {[%clk 0:00:13.7]}
1-0

[Event "Early-Titled-Tuesday-Blitz-January-16-2024"]
[Site "Chess.com"]
[Date "2024.01.16"]
[Round "6"]
[White "DonJuanEGenaro"]
[Black "Felix-Rose"]
[Result "0-1"]
[WhiteElo "1872"]
[BlackElo "2213"]
[TimeControl "180+1"]
[EndTime "9:11:29 PST"]
[Termination "Felix-Rose won on time"]

1. d4 {[%clk 0:02:50.8]} 1... Nf6 {[%clk 0:02:58.1]} 2. Nf3 {[%clk 0:02:50.7]}
2... d5 {[%clk 0:02:57.2]} 3. e3 {[%clk 0:02:46.4]} 3... c5 {[%clk 0:02:55.2]}
4. c4 {[%clk 0:02:44.4]} 4... e6 {[%clk 0:02:49.4]} 5. Nc3 {[%clk 0:02:43.2]}
5... Nc6 {[%clk 0:02:48.8]} 6. a3 {[%clk 0:02:42.6]} 6... cxd4 {[%clk
0:02:46.7]} 7. exd4 {[%clk 0:02:41.6]} 7... dxc4 {[%clk 0:02:34.9]} 8. Bxc4
{[%clk 0:02:38.3]} 8... Be7 {[%clk 0:02:35.1]} 9. O-O {[%clk 0:02:36.2]} 9...
O-O {[%clk 0:02:35.2]} 10. Re1 {[%clk 0:02:36]} 10... b6 {[%clk 0:02:33.9]} 11.
d5 {[%clk 0:02:31.4]} 11... Na5 {[%clk 0:02:33.3]} 12. Ba2 {[%clk 0:02:20.7]}
12... Nxd5 {[%clk 0:02:26.2]} 13. Nxd5 {[%clk 0:02:17.1]} 13... exd5 {[%clk
0:02:25.9]} 14. Bxd5 {[%clk 0:02:16.6]} 14... Bb7 {[%clk 0:02:14.3]} 15. Bxb7
{[%clk 0:02:13.9]} 15... Qxd1 {[%clk 0:02:06]} 16. Rxd1 {[%clk 0:02:12.4]} 16...
Nxb7 {[%clk 0:02:01.5]} 17. Bf4 {[%clk 0:02:06.1]} 17... Bf6 {[%clk 0:01:44.8]}
18. Be5 {[%clk 0:02:03.5]} 18... Bxe5 {[%clk 0:01:42]} 19. Nxe5 {[%clk
0:02:01.5]} 19... Nc5 {[%clk 0:01:42.2]} 20. Nd7 {[%clk 0:01:57.3]} 20... Rfc8
{[%clk 0:01:31.5]} 21. Nxc5 {[%clk 0:01:48]} 21... bxc5 {[%clk 0:01:31.4]} 22.
Rac1 {[%clk 0:01:44.6]} 22... Rab8 {[%clk 0:01:27.9]} 23. Rc2 {[%clk 0:01:41.8]}
23... g6 {[%clk 0:01:19.4]} 24. Rd5 {[%clk 0:01:38.9]} 24... c4 {[%clk 0:01:16]}
25. Rd4 {[%clk 0:01:37.2]} 25... Rb3 {[%clk 0:01:14.9]} 26. g4 {[%clk
0:01:15.3]} 26... c3 {[%clk 0:01:10.5]} 27. Rd3 {[%clk 0:01:13.9]} 27... Rxb2
{[%clk 0:00:52.7]} 28. Rcxc3 {[%clk 0:01:11.6]} 28... Rxc3 {[%clk 0:00:39.8]}
29. Rxc3 {[%clk 0:01:06.7]} 29... Ra2 {[%clk 0:00:40.1]} 30. g5 {[%clk
0:01:02.2]} 30... Kf8 {[%clk 0:00:39.5]} 31. Kg2 {[%clk 0:01:00.1]} 31... a6
{[%clk 0:00:38.3]} 32. Kf3 {[%clk 0:00:51.2]} 32... Ke7 {[%clk 0:00:38.3]} 33.
h4 {[%clk 0:00:49.4]} 33... a5 {[%clk 0:00:38]} 34. Ke3 {[%clk 0:00:48.6]} 34...
Ke6 {[%clk 0:00:37.7]} 35. f3 {[%clk 0:00:46.8]} 35... a4 {[%clk 0:00:37.3]} 36.
Rc6+ {[%clk 0:00:39.2]} 36... Kd5 {[%clk 0:00:35.9]} 37. Rf6 {[%clk 0:00:38.3]}
37... Rxa3+ {[%clk 0:00:35.8]} 38. Kf4 {[%clk 0:00:37.6]} 38... Rb3 {[%clk
0:00:27.5]} 39. Rxf7 {[%clk 0:00:36.5]} 39... a3 {[%clk 0:00:28]} 40. Rxh7
{[%clk 0:00:35.5]} 40... Rb4+ {[%clk 0:00:28.4]} 41. Kg3 {[%clk 0:00:29.5]}
41... Ra4 {[%clk 0:00:28.7]} 42. Rd7+ {[%clk 0:00:27.4]} 42... Ke6 {[%clk
0:00:29.1]} 43. Rd1 {[%clk 0:00:25.6]} 43... a2 {[%clk 0:00:29.5]} 44. Ra1
{[%clk 0:00:21.5]} 44... Kd5 {[%clk 0:00:29.8]} 45. f4 {[%clk 0:00:13.7]} 45...
Ke4 {[%clk 0:00:26.5]} 46. Re1+ {[%clk 0:00:05.3]} 46... Kd3 {[%clk 0:00:24.9]}
47. f5 {[%clk 0:00:04.9]} 47... gxf5 {[%clk 0:00:20.3]} 48. g6 {[%clk
0:00:01.6]} 48... Rg4+ {[%clk 0:00:20.3]} 0-1

[Event "Early-Titled-Tuesday-Blitz-January-16-2024"]
[Site "Chess.com"]
[Date "2024.01.16"]
[Round "6"]
[White "KacperKacprzak"]
[Black "aistrel"]
[Result "1-0"]
[WhiteElo "2698"]
[BlackElo "2554"]
[TimeControl "180+1"]
[EndTime "9:11:31 PST"]
[Termination "KacperKacprzak won by resignation"]

1. e4 {[%clk 0:03:00.9]} 1... c6 {[%clk 0:02:58.6]} 2. Nf3 {[%clk 0:02:56.8]}
2... d5 {[%clk 0:02:59.5]} 3. Nc3 {[%clk 0:02:57.3]} 3... dxe4 {[%clk
0:02:58.9]} 4. Nxe4 {[%clk 0:02:58.2]} 4... Nf6 {[%clk 0:02:59.5]} 5. Qe2 {[%clk
0:02:58]} 5... Nxe4 {[%clk 0:02:59.8]} 6. Qxe4 {[%clk 0:02:58.9]} 6... Qd5
{[%clk 0:03:00.4]} 7. Qf4 {[%clk 0:02:51.9]} 7... Qf5 {[%clk 0:02:57.3]} 8. Qxf5
{[%clk 0:02:31.9]} 8... Bxf5 {[%clk 0:02:58.2]} 9. d3 {[%clk 0:02:32.5]} 9... c5
{[%clk 0:02:34.4]} 10. Be3 {[%clk 0:02:30.4]} 10... e6 {[%clk 0:02:33.3]} 11.
O-O-O {[%clk 0:02:31]} 11... Nc6 {[%clk 0:02:33.4]} 12. d4 {[%clk 0:02:30.9]}
12... cxd4 {[%clk 0:02:16.6]} 13. Nxd4 {[%clk 0:02:31.8]} 13... Nxd4 {[%clk
0:02:17.1]} 14. Bxd4 {[%clk 0:02:32.7]} 14... a6 {[%clk 0:02:17.5]} 15. Be2
{[%clk 0:02:25.9]} 15... Rc8 {[%clk 0:02:14]} 16. c3 {[%clk 0:02:25.8]} 16...
Be7 {[%clk 0:02:06.7]} 17. Bf3 {[%clk 0:02:18.5]} 17... Bg5+ {[%clk 0:02:06.1]}
18. Be3 {[%clk 0:02:15.5]} 18... Bxe3+ {[%clk 0:02:06.2]} 19. fxe3 {[%clk
0:02:16.4]} 19... Rc7 {[%clk 0:02:03.6]} 20. Rd6 {[%clk 0:02:11.7]} 20... Ke7
{[%clk 0:02:03]} 21. Rhd1 {[%clk 0:02:10.7]} 21... g5 {[%clk 0:01:55.3]} 22. Rb6
{[%clk 0:02:09.4]} 22... Rb8 {[%clk 0:01:49.6]} 23. h3 {[%clk 0:02:08.8]} 23...
Bg6 {[%clk 0:01:48.5]} 24. Rd4 {[%clk 0:02:08.3]} 24... e5 {[%clk 0:01:20.3]}
25. Rdb4 {[%clk 0:02:07.1]} 25... e4 {[%clk 0:01:13.7]} 26. Bxe4 {[%clk
0:02:05.3]} 26... Bxe4 {[%clk 0:01:14.6]} 27. Rxe4+ {[%clk 0:02:05.5]} 27... Kf8
{[%clk 0:01:15.5]} 28. Re5 {[%clk 0:01:57.7]} 28... Re8 {[%clk 0:01:12.3]} 29.
Rxe8+ {[%clk 0:01:49.5]} 29... Kxe8 {[%clk 0:01:13.2]} 30. Kd2 {[%clk
0:01:49.8]} 30... Kf8 {[%clk 0:01:12.4]} 31. Ke2 {[%clk 0:01:49.9]} 31... Kg7
{[%clk 0:01:13.3]} 32. Kd3 {[%clk 0:01:37.2]} 32... f6 {[%clk 0:01:09.5]} 33. c4
{[%clk 0:01:37.2]} 33... Kg6 {[%clk 0:01:08.9]} 34. g4 {[%clk 0:01:36.5]} 34...
h5 {[%clk 0:01:07.8]} 35. b4 {[%clk 0:01:35.1]} 35... Rd7+ {[%clk 0:01:01.1]}
36. Ke2 {[%clk 0:01:35.1]} 36... h4 {[%clk 0:00:56.6]} 37. c5 {[%clk 0:01:33.5]}
37... Kf7 {[%clk 0:00:46.5]} 38. a4 {[%clk 0:01:31.9]} 38... Ke7 {[%clk
0:00:45.6]} 39. Kf3 {[%clk 0:01:06.4]} 39... Kf7 {[%clk 0:00:18.9]} 40. Ke4
{[%clk 0:01:05.3]} 40... Re7+ {[%clk 0:00:18.5]} 41. Kf3 {[%clk 0:01:00.6]}
41... Rc7 {[%clk 0:00:19.1]} 42. Rd6 {[%clk 0:00:58.1]} 42... Ke7 {[%clk
0:00:18.5]} 43. a5 {[%clk 0:00:54.6]} 43... Kf7 {[%clk 0:00:18]} 44. Ke4 {[%clk
0:00:54.8]} 44... Re7+ {[%clk 0:00:17.8]} 45. Kd4 {[%clk 0:00:55.3]} 45... Rc7
{[%clk 0:00:17.2]} 46. e4 {[%clk 0:00:55.5]} 46... Re7 {[%clk 0:00:17.4]} 47.
Kd3 {[%clk 0:00:53.2]} 47... Rc7 {[%clk 0:00:17.4]} 48. Kc4 {[%clk 0:00:53.7]}
48... Ke7 {[%clk 0:00:17.6]} 49. Kd5 {[%clk 0:00:53]} 49... Kf7 {[%clk
0:00:18.2]} 50. e5 {[%clk 0:00:52.5]} 50... f5 {[%clk 0:00:16.8]} 51. Rg6 {[%clk
0:00:52.2]} 51... fxg4 {[%clk 0:00:16.3]} 52. Rxg5 {[%clk 0:00:48.8]} 52... gxh3
{[%clk 0:00:13.9]} 53. Rh5 {[%clk 0:00:49]} 53... Kg6 {[%clk 0:00:14.6]} 54.
Rxh4 {[%clk 0:00:49.1]} 54... Rh7 {[%clk 0:00:14.4]} 55. Rg4+ {[%clk 0:00:48.2]}
55... Kf5 {[%clk 0:00:14.7]} 56. Rg1 {[%clk 0:00:48]} 56... Rd7+ {[%clk
0:00:15.3]} 57. Kc4 {[%clk 0:00:46.4]} 57... Kxe5 {[%clk 0:00:16.2]} 58. Rh1
{[%clk 0:00:41.1]} 58... Rh7 {[%clk 0:00:16.5]} 59. c6 {[%clk 0:00:41]} 59...
bxc6 {[%clk 0:00:14.2]} 60. Kc5 {[%clk 0:00:41.5]} 60... Rh4 {[%clk 0:00:12.4]}
61. Kxc6 {[%clk 0:00:40.3]} 61... Rxb4 {[%clk 0:00:12.9]} 62. Rxh3 {[%clk
0:00:40.1]} 62... Kd4 {[%clk 0:00:12.7]} 63. Rh5 {[%clk 0:00:39.1]} 63... Kc3
{[%clk 0:00:11.7]} 64. Kc7 {[%clk 0:00:37.6]} 64... Kb2 {[%clk 0:00:12]} 65. Rh6
{[%clk 0:00:36.8]} 65... Ka3 {[%clk 0:00:11.7]} 66. Rb6 {[%clk 0:00:32.2]} 66...
Ka4 {[%clk 0:00:12.6]} 67. Rxb4+ {[%clk 0:00:31.3]} 67... Kxa5 {[%clk
0:00:13.2]} 68. Rb6 {[%clk 0:00:26.9]} 68... Ka4 {[%clk 0:00:12.2]} 69. Rxa6+
{[%clk 0:00:27.4]} 1-0